Cogmind - Beta 13 @@@ ROGUE MODE // 2024.04.15 @ 14:41:01 Player: TELEMAK Result: Destroyed by Y-45 Defender with Beam Rifle Performance ------------- Evolutions (1) 500 Regions Visited (4) 800 Robots Destroyed (17) 85 Value Destroyed (649) 649 Prototype IDs (3) 60 Alien Tech Used (0) 0 Bonus (60) 60 TOTAL SCORE: 2154 Bonus ------- Follower Combat Kills 75 Friendly Fire -15 Cogmind --------- Core Integrity 0/400 Matter 255/300 Energy 80/265 System Corruption 0% Temperature Cool (9) Movement Core (550) Ox10 Location -9/Storage Parts ------- > --- POWER (1) -------- Improved Ion Engine > --- PROPULSION (2) --- (None) > --- UTILITY (4) ------ Heat Sink Improved Heat Sink Large Storage Unit > --- WEAPON (2) ------- EM Shotgun Light Assault Rifle > --- INVENTORY (15) --- Aluminum Leg Aluminum Leg Wheel Wheel Thief Drone Bay (3/3) EM Shotgun EM Shotgun EM Shotgun Small Laser Small Laser Beam Rifle Particle Gun Shock Maul Peak State ------------ > --- POWER ------------ Light Nuclear Core > --- PROPULSION ------- Compact Wheel Compact Wheel > --- UTILITY ---------- Improved Heat Sink Large Storage Unit Light Armor Plating Thief Drone Bay > --- WEAPON ----------- Light Assault Rifle Heavy Assault Rifle > --- INVENTORY -------- Improved Ion Engine Aluminum Leg Aluminum Leg Wheel Wheel Heat Sink EM Shotgun EM Shotgun EM Shotgun EM Shotgun Small Laser Small Laser Beam Rifle Particle Gun Shock Maul [Rating: 22] Favorites ----------- Power Light Ion Engine Engine Light Ion Engine Power Core Light Nuclear Core Propulsion Aluminum Leg Leg Aluminum Leg Wheel Wheel Utility Large Storage Unit Device Heat Sink Storage Large Storage Unit Protection Light Armor Plating Weapon Light Assault Rifle Energy Gun Medium Laser Ballistic Gun Light Assault Rifle Launcher Grenade Launcher Build | -11 -10 -10 -9 -9 ------- Run | Yrd Mat Min Mat Sto Slots Evolved 2 | . . . 2 . Power . | . . . . . Propulsion . | . . . . . Utility 2 | . . . 2 . Weapon . | . . . . . Parts Attached 45 | 6 15 6 13 5 Power 7 | 1 2 1 1 2 Engine 6 | 1 2 1 1 1 Core 1 | . . . . 1 Reactor . | . . . . . Propulsion 12 | 2 6 . 4 . Treads . | . . . . . Leg 5 | . 5 . . . Wheel 7 | 2 1 . 4 . Hover . | . . . . . Flight . | . . . . . Utility 14 | 1 4 3 4 2 Device 11 | 1 2 3 3 2 Storage 2 | . 2 . . . Processor . | . . . . . Hackware . | . . . . . Protection 1 | . . . 1 . Artifact . | . . . . . Weapon 12 | 2 3 2 4 1 Energy Gun 4 | . 2 1 . 1 Energy Cannon . | . . . . . Ballistic Gun 7 | 2 . 1 4 . Ballistic Cannon . | . . . . . Launcher 1 | . 1 . . . Special Weapon . | . . . . . Impact Weapon . | . . . . . Slashing Weapon . | . . . . . Piercing Weapon . | . . . . . Special Melee Weapon . | . . . . . Unidentified Prototypes 1 | . . 1 . . Parts Lost 17 | . 7 . 7 3 Power 4 | . 2 . 1 1 Propulsion 7 | . 3 . 2 2 Utility 2 | . 1 . 1 . Weapon 4 | . 1 . 3 . Highest Loss Streak 7 | . 5 . 7 3 To Critical Strikes . | . . . . . Average Slot Usage (%) 86 | . 86 94 65 96 Engine 10 | . 12 14 5 7 Leg 11 | . 13 28 . . Wheel 12 | . 13 . 15 20 Device 13 | . 11 13 11 22 Storage 10 | . 7 14 11 11 Protection 2 | . . . 3 10 Energy Gun 8 | . 3 23 8 . Ballistic Gun 14 | . 21 . 9 21 Launcher 1 | . 2 . . . Naked Turns . | . . . . . Heaviest Build 39 | 7 30 32 39 39 Greatest Support 32 | 20 20 20 32 32 Greatest Overweight (x) 2 | . 2 1 2 1 Average Overweight (x) . | . . 1 . 1 Largest Inventory Capacity 15 | 5 15 15 15 15 Average Capacity 12 | 5 10 15 15 15 Most Carried 15 | 5 10 12 14 15 Average Carried 8 | 1 5 9 10 14 Final Capacity 15 | 5 15 15 15 15 Final Carried 13 | 2 9 9 13 13 Class Distribution -------------------- 48% | Mutant 42% | Scavenger-Mutant 9% | Commander-Mutant Dominant Class ---------------- Mutant | -10/Materials Scavenger-Mutant | -10/Mines Mutant | -9/Materials Commander-Mutant | -9/Storage Resources | -11 -10 -10 -9 -9 ----------- Run | Yrd Mat Min Mat Sto Matter Collected 751 | 244 235 28 192 52 Remotely . | . . . . . Salvage Created 755 | 49 249 . 221 236 Parts 36 | 2 16 . 9 9 Haulers Intercepted . | . . . . . Recyclers Shooed . | . . . . . Parts Field Recycled . | . . . . . Retrieved Matter . | . . . . . Parts Self-Destructed . | . . . . . Prevented . | . . . . . Kills | -11 -10 -10 -9 -9 ------- Run | Yrd Mat Min Mat Sto Combat Hostiles Destroyed 16 | 1 6 . 4 5 Guns 14 | 1 4 . 4 5 AOE 2 | . 2 . . . Classes Destroyed 4 | 1 1 . 1 1 Worker 1 | . 1 . . . Grunt 10 | 1 6 . . 3 Duelist 1 | . . . . 1 Sentry 5 | . . . 4 1 Best Kill Streak 3 | 1 3 . 2 3 Combat Bots Only 3 | 1 2 . 2 3 Max Kills in Single Turn 2 | 1 2 . 1 1 Gunslinging . | . . . . . Exploded 1 | . 1 . . . Melee . | . . . . . Uniques/NPCs Destroyed . | . . . . . Combat | -11 -10 -10 -9 -9 -------- Run | Yrd Mat Min Mat Sto Hostile Shots Fired 171 | 4 65 . 84 18 Missed 39 | 1 13 . 24 1 Damage Taken 2067 | 36 774 . 884 373 Core 573 | . 160 . 315 98 Absorbed by Shields 65 | . . . . 65 Core Remaining (%) 68 | 100 . 36 . . Volleys Fired 81 | 4 34 . 26 17 Largest 2 | 1 2 . 2 2 Hottest 115 | 20 50 . 115 65 Shots Fired 138 | 4 63 . 42 29 Gun 135 | 4 60 . 42 29 Cannon . | . . . . . Launcher 3 | . 3 . . . Special . | . . . . . Kinetic 109 | 4 58 . 21 26 Thermal 23 | . 2 . 21 . Explosive 3 | . 3 . . . Electromagnetic 3 | . . . . 3 Robot Hit Streak 9 | 2 7 . 6 9 Robot Miss Streak 4 | 1 4 . 2 1 Penetration Max . | . . . . . Secondary Targets 1 | . . . 1 . Max Gunslinging Chain 1 | . . . 1 . Shots Hit Robots 100 | 3 41 . 32 24 Core Hits 37 | 2 17 . 10 8 Critical Kills 1 | 1 . . . . Critical Parts Destroyed . | . . . . . Critical Strikes 3 | 1 . . 2 . Burn 2 | . . . 2 . Destroy 1 | 1 . . . . Melee Attacks . | . . . . . Impact . | . . . . . Slashing . | . . . . . Piercing . | . . . . . Sneak Attacks . | . . . . . Combat Hostiles . | . . . . . Follow-up Attacks . | . . . . . Damage Inflicted 1184 | 36 506 . 338 304 Guns 1059 | 36 381 . 338 304 Cannons . | . . . . . Explosions 125 | . 125 . . . Melee . | . . . . . Ramming . | . . . . . Kinetic 812 | 36 381 . 127 268 Thermal 211 | . . . 211 . Explosive 125 | . 125 . . . Electromagnetic 36 | . . . . 36 Impact . | . . . . . Slashing . | . . . . . Piercing . | . . . . . Highest Corruption . | . . . . . Average Corruption . | . . . . . Corruption Purged . | . . . . . Corruption Blocked . | . . . . . Overload Shots . | . . . . . Overflow Damage 4 | . 4 . . . Projectiles . | . . . . . Explosions 4 | . 4 . . . Melee . | . . . . . Knockbacks . | . . . . . Impact . | . . . . . Kinetic . | . . . . . Secondary . | . . . . . Self-Inflicted Damage 59 | . 59 . . . Shots 2 | . 2 . . . Rammed . | . . . . . Targets Rammed . | . . . . . Kicked . | . . . . . Crushed . | . . . . . Highest Temperature 343 | . 17 . 343 . Average Temperature 162 | . 8 . 180 . Received Heat Transfer 880 | 18 450 . 369 43 Effects 1 | . . . 1 . Short Circuit 1 | . . . 1 . Siege Activations . | . . . . . Robots Corrupted . | . . . . . Combat Hostiles . | . . . . . Parts Fried . | . . . . . Impact Corruptions . | . . . . . Robots Melted . | . . . . . Combat Hostiles . | . . . . . Parts Melted 2 | . . . 2 . Heat Transferred 740 | . . . 740 . Parts Sabotaged . | . . . . . Parts Stolen . | . . . . . Parts Stripped . | . . . . . Power Chain Reactions . | . . . . . Alert | -11 -10 -10 -9 -9 ------- Run | Yrd Mat Min Mat Sto Peak Influence 172 | 20 147 17 101 172 Initial 42 | . 13 17 6 42 Average 46 | 2 55 17 66 52 Maximum Alert Level . | . . . . . Low Security (%) 100 | 100 100 100 100 100 Level 1 . | . . . . . Level 2 . | . . . . . Level 3 . | . . . . . Level 4 . | . . . . . Level 5 . | . . . . . High Security . | . . . . . Max Security . | . . . . . Squads Dispatched 4 | . 3 . . 1 Investigation 2 | . 1 . . 1 Extermination . | . . . . . Reinforcement 2 | . 2 . . . Assault . | . . . . . Garrison . | . . . . . Intercept . | . . . . . Searches Triggered . | . . . . . Construction Impeded . | . . . . . Haulers Reinforced . | . . . . . Active Scanning Responses . | . . . . . Cargo Convoy Interrupts . | . . . . . Stealth | -11 -10 -10 -9 -9 --------- Run | Yrd Mat Min Mat Sto Distress Signals 3 | . 2 . . 1 Communications Jammed . | . . . . . Distress Signals . | . . . . . Times Spotted 29 | 1 14 . 4 10 Peak Tracking Total 8 | 1 4 . 6 8 Tactical Retreats 3 | . . . 2 1 Traps | -11 -10 -10 -9 -9 ------- Run | Yrd Mat Min Mat Sto Traps Triggered 3 | . . . . 3 Indirectly . | . . . . . Trap Hack Attempts . | . . . . . Triggered . | . . . . . Disarmed . | . . . . . Reprogrammed . | . . . . . Reused . | . . . . . Traps Extracted . | . . . . . Installed . | . . . . . Triggered . | . . . . . Machines | -11 -10 -10 -9 -9 ---------- Run | Yrd Mat Min Mat Sto Machines Disabled 1 | . 1 . . . Max in Single Turn 1 | . 1 . . . Machines Repaired . | . . . . . Machines Dismantled . | . . . . . Machines Sabotaged . | . . . . . Overloaded Fab Kills . | . . . . . Hacking | -11 -10 -10 -9 -9 --------- Run | Yrd Mat Min Mat Sto Machines Accessed 9 | . 3 1 1 4 Terminals 7 | . 2 . 1 4 Fabricators . | . . . . . Repair Stations . | . . . . . Recycling Units 1 | . 1 . . . Scanalyzers . | . . . . . Garrison Access . | . . . . . Total Hacks 30 | . 13 1 3 13 Successful 18 | . 8 1 2 7 Failed 12 | . 5 . 1 6 Catastrophic 2 | . 1 . . 1 Database Lockouts . | . . . . . Manual 2 | . . 2 . . Terminals 24 | . 8 . 3 13 Fabricators . | . . . . . Repair Stations . | . . . . . Recycling Units 5 | . 5 . . . Scanalyzers . | . . . . . Garrison Access . | . . . . . Terminal Hacks 14 | . 4 1 2 7 Record 5 | . 1 . 1 3 Prototype ID Bank 1 | . 1 . . . Open Door 2 | . . 1 . 1 Alert Level 3 | . 2 . . 1 Dispatch Records 1 | . . . . 1 Maintenance Status 1 | . . . . 1 Zone Layout 1 | . . . 1 . Fabricator Hacks . | . . . . . Repair Station Hacks . | . . . . . Recycling Unit Hacks 4 | . 4 . . . Recycle Component 1 | . 1 . . . Process 2 | . 2 . . . Report Inventory 1 | . 1 . . . Scanalyzer . | . . . . . Garrison Access Hacks . | . . . . . Unauthorized Hacks . | . . . . . Terminals . | . . . . . Fabricators . | . . . . . Repair Stations . | . . . . . Recycling Units . | . . . . . Scanalyzers . | . . . . . Garrison Access . | . . . . . Data Cores Recovered . | . . . . . Used . | . . . . . Hacking Detections 7 | . 3 . 1 3 Full Trace Events 4 | . 2 . . 2 Feedback Events . | . . . . . Feedback Blocked . | . . . . . Robot Schematics Acquired . | . . . . . Robots Built . | . . . . . Authchips . | . . . . . Time . | . . . . . Total Robot Build Rating . | . . . . . Part Schematics Acquired . | . . . . . Parts Built . | . . . . . Authchips . | . . . . . Time . | . . . . . Total Part Build Rating . | . . . . . Parts Repaired . | . . . . . Time . | . . . . . Parts Recycled 1 | . 1 . . . Recycled Matter 383 | . 383 . . . Retrieved Matter . | . . . . . Retrieved Components . | . . . . . Parts Scanalyzed . | . . . . . Part Schematics Acquired . | . . . . . Parts Damaged . | . . . . . Bothacking | -11 -10 -10 -9 -9 ------------ Run | Yrd Mat Min Mat Sto Used RIF Installer . | . . . . . Robots Hacked . | . . . . . Non-combat . | . . . . . Combat . | . . . . . Robot Hacks Applied . | . . . . . Relay Couplers Released . | . . . . . Fabnet Peak Effective % . | . . . . . Robots Rewired . | . . . . . Allies Hacked . | . . . . . Hacks Repelled . | . . . . . Allies | -11 -10 -10 -9 -9 -------- Run | Yrd Mat Min Mat Sto Total Allies 10 | . . . . 10 Largest Group 10 | . . . . 10 Highest-Rated Group 88 | . . . . 88 Highest-Rated Ally 16 | . . . . 16 Total Orders 5 | . . . . 5 ROAM 1 | . . . . 1 FOLLOW 4 | . . . . 4 Ally Attacks 56 | . . 6 7 43 Total Damage 462 | . . 75 16 371 Kills 3 | . . . . 3 Allies Corrupted . | . . . . . Allies Melted . | . . . . . Intel | -11 -10 -10 -9 -9 ------- Run | Yrd Mat Min Mat Sto Robot Analysis Total . | . . . . . Derelict Logs Recovered 1 | . . 1 . . Drone Launches 3 | . . 3 . . Drone Recoveries 3 | . . . 3 . Exploration | -11 -10 -10 -9 -9 ------------- Run | Yrd Mat Min Mat Sto Turns Passed 1268 | 61 502 261 209 235 Spaces Moved 710 | 66 290 132 84 138 Core 44 | 44 . . . . Treads . | . . . . . Legs 227 | . 95 132 . . Wheels 439 | 22 195 . 84 138 Hover . | . . . . . Flight . | . . . . . Fastest Speed 50 | 50 80 190 95 115 Average Speed 123 | 60 116 190 104 115 Slowest Speed 260 | 80 260 190 115 115 Overloaded Moves . | . . . . . Propulsion Burnouts . | . . . . . Robots Hopped . | . . . . . Cave-ins Triggered . | . . . . . Exploration Rate (%) 26 | 6 44 30 13 38 Regions Visited 4 Branch Regions 2 Pre-discovered Areas 1 | . . 1 . . Known Exits Taken . | . . . . . Unknown Exits Taken 4 | 1 1 1 1 . Scrap Searched 1 | . . 1 . . Spaces Dug . | . . . . . Terrain Destroyed 14 | . 14 . . . Melee . | . . . . . Projectile . | . . . . . AOE 14 | . 14 . . . Terrain Rammed . | . . . . . Walls Destroyed . | . . . . . Machines Disabled . | . . . . . Actions | -11 -10 -10 -9 -9 --------- Run | Yrd Mat Min Mat Sto Total 989 | 83 402 146 170 188 Wait 64 | . 33 . 29 2 Move 706 | 65 289 131 83 138 Hop . | . . . . . Pick Up 47 | 8 21 1 13 4 Fast Attach . | . . . . . Attach 41 | 6 14 6 13 2 Detach 13 | . 4 6 3 . Swap 4 | . 1 . . 3 Drop 12 | . 6 1 3 2 Fire 81 | 4 34 . 26 17 Melee . | . . . . . Ram . | . . . . . Kick . | . . . . . Crush . | . . . . . Escape Stasis 20 | . . . . 20 Rewire 1 | . . 1 . . Trap . | . . . . . Miscellaneous . | . . . . . Route ------- -11/Scrapyard -10/Materials -10/Mines -9/Materials -9/Storage History --------- Turn | Location | Event 2 | -11/Scrapyard | Met Revision 17 42 | -11/Scrapyard | Discovered new exit (range 8) 62 | -11/Scrapyard | Entered Materials 431 | -10/Materials | Core integrity fell below 50% 476 | -10/Materials | Lost 5 parts (1p2n1u1w) 508 | -10/Materials | Discovered new exit (range 9) 564 | -10/Materials | Entered Mines 570 | -10/Mines | Learned location of Storage (-9) 600 | -10/Mines | Found the Drone Emporium 606 | -10/Mines | Found Prototype Device 610 | -10/Mines | Identified Thief Drone Bay 675 | -10/Mines | Assembled infested the area 803 | -10/Mines | Discovered new exit (range 13) 825 | -10/Mines | Entered Materials 825 | -9/Materials | Accompanied by 3 allies 825 | -9/Materials | Evolved 2 slots: Utility x2 936 | -9/Materials | Core integrity fell below 50% 987 | -9/Materials | Lost 7 parts (1p2n1u3w) 1007 | -9/Materials | Discovered new exit (range 10) 1034 | -9/Materials | Entered Storage 1058 | -9/Storage | Assisted by bots powering up and referring to "LRC-V3" 1110 | -9/Storage | Core integrity fell below 20% 1243 | -9/Storage | Lost 7 allies 1269 | -9/Storage | Destroyed by Y-45 Defender with Beam Rifle Last Messages --------------- 01197_ Mercenary 2h destroyed. 01205_ Mercenary 2g destroyed. 01221_ K-01 Serf collects debris. 01229_ Triggered Stasis Trap. 01229_ A bubble of rippling energy engulfs the area. 01229_ Field strength at 90. 01238_ Y-45 Defender destroyed. 01241_ Field strength at 60. 01242_ Field strength at 47. 01243_ Field strength at 37. 01246_ Lgt. Nuclear Core destroyed. 01249_ Com. Wheel destroyed. 01254_ Stasis field depleted. 01254_ Lgt. Armor Plating severed. 01256_ Hvy. Assault Rifle severed. 01259_ Com. Wheel destroyed. 01262_ L-31 Rogue destroyed. 01264_ G-34 Mercenary destroyed. [Achievement: First Step to Greatness] Map ----- +----------------------------------------------------+ | ??????# #??# ##????####### #?????## +?????????? | | ??????# #??#%T#????#"""""# #??????# #?????????? | | ??????# ####/#######""T""#%########[ ######+#### | | ??????# *=[ [ %=*%%[ | | ??????# = =[%==== | | ??????# ^ [ =*!***%= | | ??????###################+###########= ########## | | ???????????????????????? ??????????# #????????? | | ??????????????????????? ???????????# #????????? | | ?????????????????????? "???????????+ #????????? | | ?????????????????????# ????????????# #????????? | | ?????????????????????# ?????????????# #????????? | | ?????????????????????# ?????????????# #????????? | | ?????????????????????#??????????????# #????????? | | ????????????????????????????????????# #????????? | | ????????????????????????????????????# #????????? | | ??????????????????????????#+#???????# #????????? | | ??????????????????######??# #???????# #????????? | | ??????????????????#"""""??# #???????# #????????? | | ?????????????????##""T""### ######### #????????? | | ?????????????????# # #????????? | | ?????????????????#""" # #????????? | | ?????????????????#""" #u #????????? | | ?????????????????#""" *#!u #????????? | | ?????????????????#""" =%Y! +????????? | | ?????????????????#""" [@# #????????? | | ?????????????????# ###+#+#########????????? | | ?????????????????# [# / #????????????? | | ?????????????????# !=# ][ #????????????? | | ?????????????????####"T"#%# #????????????? | | ????????????????????#"""### #????????????? | | ????????????????????####??# #????????????? | | ??????????????????????????# #????????????? | | ??????????????????????????# #????????????? | | ??????????????????????????# / #????????????? | | ??????????????????????????###########????????????? | | ?????????????????????????????????????????????????? | | ?????????????????????????????????????????????????? | | ?????????????????????????????????????????????????? | | ?????????????????????????????????????????????????? | | ?????????????????????????????????????????????????? | | | | | | | | | | | | | | | | | | | +----------------------------------------------------+ Best States ------------- Heat Dissipation 52 Energy Generation 14 Energy Capacity 265 Matter Stores 300 Matter Capacity 300 Sight Range 16 Terrain Scan Density 10 ECM Strength 1 Armor Coverage 150 Evasion (%) 50 Item Schematics ----------------- None Robot Schematics ------------------ None Fabricated ------------ Nothing Alien Tech Used ----------------- None Achievements -------------- First Step to Greatness One Hack Too Far Risk Taker The More The Merrier Uninvited Guest Challenges ------------ None Game ------ Seed PrecisionSurgeExtractor Manual? 0 Play Time 00:58:11 Cumulative 1.9 hours Start 2024.04.15 @ 13:28:30 End 2024.04.15 @ 14:41:01 Sessions 1 Manual Loads 0 Difficulty Rogue Special Mode None Game No. 2 Rogue 1 Adventurer 1 Explorer 0 Win Type - Total 0 Types 0/0/0/0/0/0/0/0/0 Lore% 0 Gallery% 2 Achievement% 1 Wizard Run 0 Options --------- Layout 1 ASCII 0 Keyboard 0 Movement Numpad Keybinds 0 Fullscreen 2 Font 24/Smallcaps Map View 50x35 Zoom Use 0% Tactical HUD 1 Map Filters NONE Filters NONE Steam 1 RUN: 714abc7d-a247-4af8-947e-df53bc0b07ca